bitfinex/quotes_SOLUSD_20240716
["timestamp","ask_amount","ask_price","bid_price","bid_amount"]
[1721119194509,6.4851,154.2,154.15,45.0]
[1721119194724,0.8363192,154.21,154.15,45.0]
[1721119194919,0.8363192,154.21,154.14,51.4875]
[1721119195118,7.3210192,154.21,154.14,45.0]
[1721119195301,0.8363192,154.21,154.11,6.4884]
[1721119195502,6.4859,154.18,154.11,6.4888]
[1721119195717,0.8363192,154.21,154.11,6.4888]
[1721119196028,6.4859,154.18,154.11,6.4888]
[1721119196215,6.4859,154.18,154.09,29.1591]
[1721119196396,6.4859,154.18,154.1,20.0]
[1721119196809,6.4864,154.17,154.09,29.1591]
[1721119197425,6.4864,154.17,154.1,6.4891]
[1721119197609,6.4859,154.19,154.1,6.4891]
[1721119197816,6.4859,154.19,154.11,6.4887]
[1721119198023,6.4859,154.19,154.12,45.0]
[1721119198351,6.4859,154.19,154.13,1.29741616]
[1721119198839,6.4851,154.2,154.13,1.29741616]
[1721119199126,20.0,154.19,154.13,1.29741616]
[1721119199299,26.4855,154.19,154.13,1.29741616]
[1721119199504,7.3212192,154.21,154.14,1.29730115]
[1721119199710,7.3212192,154.21,154.15,1.29721008]
[1721119200430,5.93650652,154.2,154.15,1.29721008]
[1721119200609,6.4851,154.2,154.14,45.0]
[1721119200810,0.8363192,154.21,154.14,45.0]
[1721119201015,6.4855,154.19,154.14,45.0]
[1721119201312,6.486,154.18,154.14,45.0]
[1721119201710,0.8363192,154.21,154.07,16.2256]
[1721119201711,17.0481192,154.21,154.07,16.2256]
[1721119201911,6.486,154.18,154.1,7.78635362]
[1721119202126,6.486,154.18,154.11,1.29745888]
[1721119202440,20.0,154.2,154.12,16.2207]
[1721119202748,12.4222589,154.19,154.12,16.2207]
[1721119203058,6.4859,154.18,154.13,45.0]
[1721119203219,6.4859,154.18,154.12,45.0]
[1721119203411,6.4854,154.2,154.12,51.4881]
[1721119203738,25.93651783,154.19,154.12,51.4881]
[1721119203942,26.4856,154.19,154.12,45.0]
[1721119204240,5.93650777,154.18,154.12,45.0]
[1721119204436,20.0,154.19,154.12,45.0]
[1721119204738,7.62424515,154.21,154.09,6.4458]
[1721119204739,6.487,154.16,154.09,6.4458]
[1721119204940,36.2132,154.2,154.09,6.4458]
[1721119204941,6.4872,154.15,154.09,6.4458]
[1721119205153,36.2132,154.2,154.09,6.4458]
[1721119205154,6.4868,154.16,154.09,6.4458]
[1721119205317,6.4868,154.16,154.1,1.29760506]
[1721119205621,20.0,154.2,154.11,7.78617869]
[1721119205829,5.93905525,154.19,154.12,1.29741691]
[1721119206059,5.93905525,154.18,154.11,16.2211]
[1721119206347,5.9392952,154.17,154.11,24.00725417]
[1721119206521,26.4851,154.2,154.11,17.51845417]
[1721119206841,5.9407486,154.19,154.12,45.0]
[1721119207025,20.0,154.2,154.12,45.0]
[1721119207231,12.42630789,154.19,154.12,51.4883]
[1721119207435,7.62424515,154.21,154.13,1.29729371]
[1721119207633,5.9413133,154.2,154.12,45.0]
[1721119207939,5.9413133,154.19,154.13,6.4879]
[1721119208252,0.8363192,154.21,154.14,46.29721849]
[1721119208419,0.8363192,154.21,154.14,61.2186]
[1721119208420,5.94310382,154.2,154.14,61.2186]
[1721119208742,7.3213192,154.21,154.14,61.2186]
[1721119208916,5.94397936,154.2,154.14,61.2186]
[1721119209115,6.4851,154.2,154.14,45.0]
[1721119209425,0.8363192,154.21,154.15,1.2972203]
[1721119209426,7.3210192,154.21,154.15,1.2972203]
[1721119209632,7.3210192,154.21,154.15,46.2972203]
[1721119209829,7.3210192,154.21,154.15,45.0]
[1721119210134,0.8363192,154.21,154.15,45.0]
[1721119210729,0.8363192,154.21,154.18,6.4855]
[1721119210922,0.8363192,154.21,154.19,46.29676272]
[1721119211139,0.8363192,154.21,154.19,45.0]
[1721119211614,0.8363192,154.21,154.14,6.4872]
[1721119211817,0.8363192,154.21,154.15,6.487]
[1721119212031,0.8363192,154.21,154.14,6.4875]
[1721119212641,7.3210192,154.21,154.14,6.4875]
[1721119213250,7.3210192,154.21,154.15,46.29710885]
[1721119213251,6.4851,154.2,154.15,46.29710885]
[1721119213424,7.3210192,154.21,154.15,1.29710885]
[1721119213628,7.3210192,154.21,154.14,51.4875]
[1721119213831,7.3210192,154.21,154.14,45.0]
[1721119214029,7.3210192,154.21,154.14,51.4874]
[1721119214230,0.8363192,154.21,154.15,17.51413606]
[1721119214542,0.8363192,154.21,154.18,6.4855]
[1721119214715,0.8363192,154.21,154.19,46.29684926]
[1721119214915,0.8363192,154.21,154.19,45.0]
[1721119215120,0.8363192,154.21,154.18,45.0]
[1721119215546,0.8363192,154.21,154.18,46.29694607]
[1721119215750,0.8363192,154.21,154.2,22.6977]
[1721119215941,0.8363192,154.21,154.2,67.6977]
[1721119216317,0.8363192,154.21,154.2,45.0]
[1721119216519,0.8363192,154.21,154.19,51.4853]
[1721119216923,0.8363192,154.21,154.2,1.29665473]
[1721119217156,0.8363192,154.21,154.16,55.0658]
[1721119217333,0.8363192,154.21,154.17,26.4863]
[1721119217647,0.8363192,154.21,154.18,6.4858]
[1721119217856,0.8363192,154.21,154.17,20.0]
[1721119218025,0.8363192,154.21,154.14,45.469]
[1721119218221,0.8363192,154.21,154.15,6.4871]
[1721119218426,0.8363192,154.21,154.14,6.619]
[1721119218645,0.8363192,154.21,154.17,6.4863]
[1721119218946,0.8363192,154.21,154.14,22.837]
[1721119218947,0.8363192,154.21,154.16,6.4867]
[1721119219450,0.8363192,154.21,154.16,16.2158]
[1721119219621,0.8363192,154.21,154.17,1.29687569]
[1721119219823,0.8363192,154.21,154.18,7.78234151]
[1721119220035,0.8363192,154.21,154.17,45.0]
[1721119220036,0.8363192,154.21,154.2,6.485]
[1721119220353,0.8363192,154.21,154.2,51.485]
[1721119222050,0.8363192,154.21,154.2,1.29653193]
[1721119222238,0.8363192,154.21,154.2,6.485]
[1721119223429,0.8363192,154.21,154.2,51.485]
[1721119224228,0.8363192,154.21,154.2,45.0]
[1721119224674,0.8363192,154.21,154.19,45.0]
[1721119225936,0.8363192,154.21,154.19,51.4854]
[1721119226446,0.8363192,154.21,154.19,45.0]
[1721119227638,0.8363192,154.21,154.19,51.4854]
[1721119228062,0.8363192,154.21,154.19,45.0]
[1721119229165,0.8363192,154.21,154.2,1.29679172]
[1721119230262,0.8363192,154.21,154.2,7.78165171]
[1721119230555,0.8363192,154.21,154.2,51.485]
[1721119232045,0.8363192,154.21,154.2,6.485]
[1721119232352,0.8363192,154.21,154.18,16.2139]
[1721119232870,0.8363192,154.21,154.16,6.4867]
[1721119233037,0.8363192,154.21,154.15,55.0679]
[1721119233038,0.8363192,154.21,154.18,6.4858]
[1721119233351,0.8363192,154.21,154.19,1.2968011]
[1721119233745,0.8363192,154.21,154.2,22.6977]
[1721119234376,0.8363192,154.21,154.2,67.6977]
[1721119234562,0.8363192,154.21,154.2,61.2127]
[1721119234951,0.8363192,154.21,154.2,45.0]
[1721119235340,0.8363192,154.21,154.19,45.0]
[1721119235545,0.8363192,154.21,154.18,7.78258138]
[1721119235546,0.8363192,154.21,154.18,6.4858]
[1721119235769,0.8363192,154.21,154.18,7.78258473]
[1721119235951,0.8363192,154.21,154.18,1.29678473]
[1721119236152,0.8363192,154.21,154.2,22.6977]
[1721119236586,0.8363192,154.21,154.2,16.2127]
[1721119236742,0.8363192,154.21,154.2,67.6977]
[1721119239684,0.8363192,154.21,154.2,45.0]
[1721119240575,0.8363192,154.21,154.19,51.4854]
[1721119240777,0.8363192,154.21,154.2,6.485]
[1721119240981,0.8363192,154.21,154.2,51.485]
[1721119241168,23.0402192,154.21,154.19,1.79675281]
[1721119241368,23.0402192,154.21,154.19,0.5]
[1721119244074,29.5248192,154.21,154.19,0.5]
[1721119245063,6.485,154.2,154.19,0.5]
[1721119245261,38.85,154.2,154.09,16.2242]
[1721119245482,20.0,154.19,154.09,16.2242]
[1721119245684,6.4863,154.18,154.09,22.7138]
[1721119245898,20.0,154.19,154.09,22.7138]
[1721119246062,6.4864,154.17,154.1,7.78654759]
[1721119246268,6.4868,154.16,154.11,1.29742328]
[1721119246478,20.0,154.19,154.09,22.7138]
[1721119246789,6.4864,154.17,154.09,22.7138]
[1721119247087,20.0,154.19,154.09,22.7138]
[1721119247088,6.4867,154.16,154.09,22.7138]
[1721119247298,6.4864,154.17,154.1,7.78672403]
[1721119247598,6.4864,154.17,154.11,1.29745651]
[1721119248180,6.4864,154.17,154.1,6.4892]
[1721119248372,6.4864,154.17,154.09,22.7138]
[1721119248694,6.4863,154.18,154.1,45.0]
[1721119248994,6.4872,154.15,154.1,45.0]
[1721119249192,36.2142,154.19,154.06,6.4906]
[1721119249193,6.4876,154.14,154.06,6.4906]
[1721119249398,6.4881,154.13,154.06,16.2273]
[1721119249900,38.85,154.17,154.07,7.78822707]
[1721119250071,26.78985103,154.16,154.1,6.4892]
[1721119250271,6.4868,154.16,154.09,22.7138]
[1721119250577,6.4868,154.16,154.1,1.29750813]
[1721119250767,6.4868,154.16,154.1,46.29750813]
[1721119250965,20.0,154.19,154.1,46.29750813]
[1721119251182,26.4856,154.19,154.11,7.78583843]
[1721119251389,6.486,154.18,154.12,45.0]
[1721119251578,20.0,154.19,154.12,51.4884]
[1721119251765,20.0,154.19,154.12,45.0]
[1721119251766,6.4861,154.18,154.12,45.0]
[1721119251982,6.4861,154.18,154.1,6.4891]
[1721119251983,6.4867,154.16,154.11,45.0]
[1721119252195,20.0,154.19,154.06,6.4907]
[1721119252372,20.0,154.19,154.01,6.6392]
[1721119252373,38.85,154.14,154.01,6.6392]
[1721119252573,6.4884,154.12,154.01,6.6392]
[1721119252783,38.85,154.14,154.02,1.2978473]
[1721119252985,20.0,154.13,154.01,6.6392]
[1721119253187,26.4883,154.13,154.01,6.6392]
[1721119253392,6.4366,154.12,154.06,16.2273]
[1721119254500,20.0,154.13,154.06,16.2273]
[1721119254673,20.0,154.13,154.07,45.0]
[1721119254998,6.4876,154.14,154.07,45.0]
[1721119255299,20.0,154.13,154.08,1.29768022]
[1721119255478,20.0,154.13,154.03,19.52]
[1721119255479,6.4893,154.1,154.03,6.4919]
[1721119255687,20.0,154.13,153.93,10.0]
[1721119255688,6.4889,154.11,154.04,7.78945494]
[1721119255894,6.4885,154.12,154.04,6.4916]
[1721119256080,6.4889,154.11,154.03,22.7224]
[1721119256486,20.0,154.13,154.03,16.2302]
[1721119256676,20.0,154.13,154.03,6.4922]
[1721119257500,6.4889,154.11,154.04,7.78969023]
[1721119258181,6.4885,154.12,154.04,7.78969023]
[1721119258382,6.4889,154.11,154.05,45.0]
[1721119258705,6.4889,154.11,154.06,1.29791999]
[1721119259696,6.4889,154.11,154.05,45.0]
[1721119260002,6.4889,154.11,154.04,45.0]
[1721119260706,6.4889,154.11,154.03,22.7226]
[1721119260707,20.0,154.13,154.01,13.132]
[1721119261004,20.0,154.13,154.02,21.29812641]
[1721119261202,6.4889,154.11,154.02,21.29812641]
[1721119261509,6.4893,154.1,154.02,26.4922]
[1721119261885,6.4889,154.11,154.02,36.2308]
[1721119262085,6.4889,154.11,154.03,51.4921]
[1721119262407,20.0,154.13,154.04,1.29792242]
[1721119262612,20.0,154.13,154.02,36.2308]
[1721119262613,6.4888,154.11,154.05,1.29789559]
[1721119262780,6.4888,154.11,154.06,1.29788965]
[1721119262984,6.4884,154.12,154.07,1.29786946]
[1721119263197,6.4893,154.1,154.02,42.723]
[1721119263585,6.4893,154.1,154.03,52.79009158]
[1721119264599,38.85,154.12,154.01,6.6392]
[1721119264801,6.4913,154.06,153.99,6.4938]
[1721119265206,21.7671,154.08,153.97,6.6394]
[1721119265505,6.4913,154.06,153.97,13.1337]
[1721119265711,6.4915,154.05,153.97,13.1337]
[1721119265934,6.491,154.06,153.98,6.4943]
[1721119266212,26.4905,154.07,153.99,7.79193919]
[1721119266383,26.4905,154.07,154.0,6.4933]
[1721119266718,26.4905,154.07,153.99,1.29843919]
[1721119266719,6.4911,154.06,153.99,16.2346]
[1721119267211,26.4905,154.07,153.99,16.2346]
[1721119267396,6.4911,154.06,154.0,45.0]
[1721119268385,6.4914,154.05,154.0,45.0]
[1721119268594,20.0,154.07,153.93,6.2437]
[1721119268914,6.4918,154.04,153.95,6.4951]
[1721119269111,6.4925,154.03,153.96,20.0]
[1721119269318,6.4927,154.02,153.96,20.0]
[1721119269616,16.2287,154.05,153.93,6.2437]
[1721119269818,16.2287,154.05,153.93,12.7401]
[1721119269819,6.4931,154.01,153.93,12.7401]
[1721119270206,16.2287,154.05,153.93,6.2437]
[1721119270207,6.4936,154.0,153.93,6.2437]
[1721119270514,6.4935,154.0,153.94,1.29885088]
[1721119270693,38.85,154.03,153.92,1.29890165]
[1721119270889,6.4937,154.0,153.93,1.29879797]
[1721119271190,20.0,154.02,153.93,1.29879797]
[1721119271421,20.0,154.02,153.94,1.29882252]
[1721119271927,6.4926,154.03,153.95,6.4955]
[1721119272214,20.0,154.06,153.96,7.79370601]
[1721119272422,6.4917,154.05,153.97,6.4943]
[1721119272719,20.0,154.04,153.98,45.0]
[1721119272924,20.0,154.06,153.95,22.7337]
[1721119273099,6.4927,154.02,153.96,45.0]
[1721119273439,6.4925,154.03,153.96,45.0]
[1721119273715,20.0,154.06,153.97,7.79334753]
[1721119273904,6.4915,154.05,153.98,45.0]
[1721119274106,20.0,154.06,153.99,1.29850942]
[1721119274496,6.4918,154.04,153.98,45.0]
[1721119275118,26.4913,154.06,153.97,45.0]
[1721119275322,26.4913,154.06,153.99,6.4939]
[1721119275501,26.4913,154.06,154.0,46.29837993]
[1721119276223,6.4914,154.05,154.0,45.0]
[1721119276598,20.0,154.06,154.0,45.0]
[1721119276925,6.4914,154.05,154.0,45.0]
[1721119277221,26.4909,154.06,154.0,45.0]
[1721119277430,26.4909,154.06,153.99,45.0]
[1721119277724,6.491,154.06,153.99,51.4937]
[1721119278808,15.7365,154.08,154.0,17.53117466]
[1721119279024,22.2269,154.08,154.01,51.493]
[1721119279436,6.4905,154.07,154.01,45.0]
[1721119279728,15.7365,154.08,154.01,45.0]
[1721119280726,6.4917,154.05,154.01,45.0]
[1721119281029,6.4922,154.03,153.97,22.6572]
[1721119281328,6.4918,154.04,153.97,22.7312]
[1721119281635,6.4918,154.04,153.98,1.29852561]
[1721119281836,70.8119,154.08,153.99,1.29855582]
[1721119281837,6.4914,154.05,153.99,1.29855582]
[1721119282001,20.0,154.04,153.93,6.6155]
[1721119282201,6.4937,154.0,153.93,22.8558]
[1721119282512,6.4937,154.0,153.93,16.2403]
[1721119283029,6.4931,154.01,153.93,22.7367]
[1721119283326,38.85,154.02,153.89,61.7428]
[1721119283531,42.2299,154.01,153.89,61.7428]
[1721119283832,6.4935,154.0,153.92,6.4968]
[1721119284001,6.4935,154.0,153.92,22.7389]
[1721119284205,6.4948,153.97,153.89,6.6484]
[1721119284418,6.4953,153.96,153.89,13.1463]
[1721119284727,6.4953,153.96,153.88,22.744]
[1721119285235,6.4948,153.97,153.89,6.498]
[1721119285616,6.4943,153.98,153.9,7.7967955]
[1721119285822,20.0,153.97,153.9,7.7967955]
[1721119286009,20.0,153.97,153.9,6.4976]
[1721119286317,26.4948,153.97,153.89,6.4981]
[1721119286933,26.4948,153.97,153.9,45.0]
[1721119287412,26.4947,153.97,153.9,51.4976]
[1721119287609,20.0,153.97,153.91,6.4972]
[1721119287948,6.4935,154.0,153.9,45.0]
[1721119288116,20.0,153.99,153.9,45.0]
[1721119288617,20.0,153.99,153.92,6.4968]
[1721119288825,26.4939,153.99,153.91,7.79621841]
[1721119289039,20.0,153.99,153.92,51.4966]
[1721119289214,20.0,154.0,153.94,6.4957]
[1721119289417,22.2296,154.01,153.95,1.29885037]
[1721119289615,15.7365,154.01,153.92,51.4966]
[1721119289826,6.4938,154.0,153.92,51.4966]
[1721119290030,15.7365,154.01,153.93,6.4964]
[1721119290244,15.7365,154.01,153.94,52.79478238]
[1721119290416,15.7365,154.01,153.95,6.4955]
[1721119290611,15.7365,154.01,153.96,1.2987472]
[1721119291230,22.2296,154.01,153.95,45.0]
[1721119291615,15.7365,154.01,153.95,45.0]
[1721119291816,22.2297,154.01,153.95,45.0]
[1721119292121,15.7365,154.01,153.91,1.29874989]
[1721119292326,15.7365,154.01,153.93,6.4962]
[1721119292529,15.7365,154.01,153.94,46.29888287]
[1721119292733,22.2296,154.01,153.94,52.79468287]
[1721119292913,22.2296,154.01,153.94,45.0]
[1721119293232,15.7365,154.01,153.95,1.2987758]
[1721119293447,15.7365,154.01,153.96,1.29874993]
[1721119293643,15.7365,154.01,153.94,51.496]
[1721119293940,15.7365,154.01,153.95,1.29875898]
[1721119294322,6.4922,154.03,153.95,6.4955]
[1721119294627,26.4928,154.02,153.96,45.0]
[1721119295129,20.0,154.02,153.96,45.0]
[1721119295526,19.40594373,154.04,153.96,51.4951]
[1721119295728,12.91414373,154.04,153.96,45.0]
[1721119295932,6.4927,154.02,153.95,51.4955]
[1721119296127,6.4922,154.03,153.96,1.29861529]
[1721119296514,12.91414373,154.04,153.96,6.4948]
[1721119296716,6.1185,154.04,153.97,45.0]
[1721119296935,12.6106,154.04,153.97,45.0]
[1721119298014,6.4922,154.03,153.97,45.0]
[1721119299351,6.1185,154.04,153.96,1.29854128]
[1721119299637,6.493,154.01,153.94,6.496]
[1721119299849,6.493,154.01,153.95,46.29880203]
[1721119300213,6.493,154.01,153.96,1.29880415]
[1721119300526,6.4943,153.99,153.89,6.2689]
[1721119300727,6.4943,153.99,153.92,1.29895605]
[1721119300918,6.4943,153.99,153.93,1.29895643]
[1721119301541,6.4935,154.0,153.94,1.29895581]
[1721119301755,6.4931,154.01,153.94,1.29895581]
[1721119301919,38.85,154.03,153.94,1.29895581]
[1721119302237,20.0,154.02,153.95,6.4952]
[1721119302438,26.4927,154.02,153.96,45.0]
[1721119302844,6.4957,153.95,153.87,38.85]
[1721119303015,6.4947,153.98,153.9,65.0]
[1721119303218,6.4947,153.98,153.9,51.4973]
[1721119303465,6.4949,153.97,153.9,51.4973]
[1721119303645,6.4949,153.97,153.88,37.789]
[1721119303941,6.4949,153.97,153.88,31.2909]
[1721119304145,6.4949,153.97,153.89,12.7669]
[1721119304532,6.4953,153.96,153.88,16.2456]
[1721119304726,21.713,153.97,153.89,6.4978]
[1721119305643,21.713,153.97,153.9,51.4977]
[1721119306036,6.2321,153.96,153.9,45.0]
[1721119306243,6.2321,153.96,153.89,45.0]
[1721119306734,54.0683,153.97,153.91,6.4972]
[1721119306919,15.2183,153.97,153.9,6.4977]
[1721119307118,15.2183,153.97,153.91,46.2991646]
[1721119307428,15.2183,153.97,153.91,1.2991646]
[1721119307822,15.2183,153.97,153.91,46.2991646]
[1721119309338,15.2183,153.97,153.91,52.7963646]
[1721119309542,15.2183,153.97,153.91,46.2991646]
[1721119310224,6.4953,153.96,153.91,46.2991646]
[1721119310425,21.7131,153.97,153.91,1.2991646]
[1721119310938,21.7131,153.97,153.9,45.0]
[1721119311433,15.2183,153.97,153.9,45.0]
[1721119311643,21.7134,153.97,153.91,1.29922216]
[1721119311956,6.4952,153.96,153.91,1.29922216]
[1721119312128,54.0683,153.97,153.85,6.1179]
[1721119312331,20.0,153.96,153.85,12.6175]
[1721119312527,6.496,153.94,153.86,6.4992]
[1721119312840,6.496,153.94,153.87,1.29939959]
[1721119313360,6.4969,153.92,153.87,1.29939959]
[1721119313526,20.0,153.96,153.87,1.29939959]
[1721119313727,20.0,153.96,153.86,46.29940316]
[1721119313927,6.496,153.94,153.88,1.29940384]
[1721119314336,20.0,153.96,153.88,46.29940384]
[1721119314537,20.0,153.96,153.88,1.29940384]
[1721119315154,20.0,153.96,153.88,46.29940384]
[1721119315636,26.4955,153.96,153.89,1.29940734]
[1721119315967,26.4955,153.96,153.9,1.29932499]
[1721119316140,20.0,153.96,153.9,1.29932499]
[1721119316456,26.4952,153.96,153.9,1.29932499]
[1721119316667,26.4952,153.96,153.9,1.29930742]
[1721119317340,6.4956,153.95,153.88,45.0]
[1721119317660,20.0,153.96,153.88,45.0]
[1721119317953,20.0,153.96,153.89,1.29930259]
[1721119317954,6.4956,153.95,153.89,1.29930259]
[1721119318155,6.4967,153.93,153.88,45.0]
[1721119318366,6.4967,153.93,153.85,12.6177]
[1721119318531,6.4972,153.92,153.84,6.5002]
[1721119319258,6.4972,153.92,153.85,6.4997]
[1721119319829,45.3462,153.94,153.87,6.4988]
[1721119320034,45.3462,153.94,153.82,20.81958022]
[1721119320035,20.0,153.93,153.86,6.4993]
[1721119320430,20.0,153.93,153.87,6.4988]
[1721119320631,20.0,153.93,153.86,16.2484]
[1721119320859,6.4956,153.95,153.88,6.4981]
[1721119321155,26.4961,153.94,153.86,22.7477]
[1721119321460,26.4961,153.94,153.87,45.0]
[1721119321665,26.4961,153.94,153.87,51.4988]
[1721119322656,20.0,153.94,153.88,16.2456]
[1721119322863,20.0,153.94,153.89,45.0]
[1721119323067,20.0,153.94,153.9,1.29933504]
[1721119323372,6.4962,153.94,153.89,45.0]
[1721119323538,6.4962,153.94,153.88,45.0]
[1721119324561,6.4962,153.94,153.87,51.4989]
[1721119324765,6.4962,153.94,153.88,1.29933559]
[1721119324966,6.4969,153.92,153.88,1.29933857]
[1721119325136,6.4969,153.92,153.87,45.0]
[1721119325137,6.4973,153.91,153.85,16.2493]
[1721119325339,6.4973,153.91,153.83,6.5006]
[1721119326167,6.4978,153.9,153.83,6.5006]
[1721119326367,6.4973,153.91,153.83,6.5006]
[1721119326864,6.4973,153.91,153.84,51.5001]
[1721119327074,6.4974,153.91,153.84,51.5001]
[1721119327242,15.8956,153.9,153.84,51.5001]
[1721119328159,15.8956,153.9,153.85,6.4994]
[1721119328372,12.5273,153.93,153.86,45.0]
[1721119328539,53.9188,153.94,153.86,52.79858548]
[1721119328540,21.5648,153.94,153.86,52.79858548]
[1721119328739,26.4965,153.93,153.86,46.29958548]
[1721119329069,20.0,153.93,153.86,52.79878548]
[1721119329250,20.0,153.93,153.87,6.4988]
[1721119329429,20.0,153.93,153.88,1.29943587]
[1721119330065,26.4965,153.93,153.88,1.29943587]
[1721119330269,20.0,153.93,153.88,1.29943587]
[1721119330435,21.5648,153.94,153.87,7.79815545]
[1721119330641,13.08685796,153.97,153.9,6.4977]
[1721119330872,23.84945755,153.98,153.86,45.0]
[1721119331074,6.4956,153.95,153.88,6.4984]
[1721119331245,6.4951,153.97,153.89,45.0]
[1721119331575,23.84945755,153.98,153.89,45.0]
[1721119331747,6.4956,153.95,153.88,45.0]
[1721119332066,6.4963,153.94,153.88,45.0]
[1721119332446,6.4956,153.95,153.88,51.4985]
[1721119332663,6.4956,153.95,153.88,45.0]
[1721119333559,6.4964,153.93,153.88,45.0]
[1721119333936,6.4964,153.93,153.89,1.29946643]
[1721119334141,6.4964,153.93,153.88,45.0]
[1721119334340,6.497,153.92,153.88,45.0]
[1721119334568,6.497,153.92,153.84,6.5001]
[1721119334866,6.497,153.92,153.85,6.4996]
[1721119335840,6.497,153.92,153.86,45.0]
[1721119336037,55.0877,153.97,153.87,1.29958996]
[1721119336339,20.0,153.96,153.88,16.246]
[1721119336553,20.0,153.96,153.89,46.29925713]
[1721119336752,26.4952,153.96,153.9,1.29918656]
[1721119337066,22.0452,153.98,153.91,6.4971]
[1721119337277,10.0,153.97,153.81,21.4534]
[1721119337453,6.4985,153.89,153.81,76.5572]
[1721119337658,6.4977,153.9,153.82,6.5009]
[1721119337854,6.4973,153.91,153.83,6.5005]
[1721119338353,6.4978,153.9,153.83,6.5005]
[1721119339070,6.4989,153.88,153.81,37.7072]
[1721119339284,6.4989,153.88,153.81,22.5167]
[1721119339981,6.4981,153.89,153.81,22.5167]
[1721119340273,16.2131,153.92,153.81,22.5167]
[1721119340465,20.0,153.91,153.82,1.29990041]
[1721119340859,6.4978,153.9,153.81,29.0178]
[1721119341168,6.4986,153.88,153.81,29.0178]
[1721119341354,6.4991,153.87,153.81,6.2629]
[1721119341549,6.4983,153.89,153.82,45.0]
[1721119341756,6.4985,153.88,153.81,6.2629]
[1721119342453,6.4981,153.9,153.81,6.2629]
[1721119342777,20.0,153.89,153.82,6.5007]
[1721119342954,20.0,153.89,153.83,51.5006]
[1721119343360,16.2131,153.92,153.83,61.2515]
[1721119343568,16.2131,153.92,153.84,1.29979421]
[1721119343755,16.2131,153.92,153.83,61.2515]
[1721119344073,16.2131,153.92,153.84,1.29955954]
[1721119344266,22.71,153.92,153.85,6.4997]
[1721119344569,16.2131,153.92,153.86,45.0]
[1721119344771,16.2131,153.92,153.86,46.29956079]
[1721119345762,22.71,153.92,153.86,45.0]
[1721119346557,22.71,153.92,153.85,45.0]
[1721119346857,22.71,153.92,153.85,51.4997]
[1721119347050,16.2131,153.92,153.86,6.4993]
[1721119347369,13.0825,153.94,153.86,6.4993]
[1721119347548,20.0,153.93,153.87,45.0]
[1721119347954,20.0,153.93,153.86,45.0]
[1721119348668,6.4969,153.92,153.86,45.0]
[1721119348973,6.4981,153.9,153.82,22.7535]
[1721119349177,6.4981,153.9,153.83,45.0]
[1721119349356,6.4983,153.89,153.83,45.0]
[1721119349556,6.4987,153.88,153.8,6.5019]
[1721119349785,6.4987,153.88,153.77,22.1998]
[1721119349786,23.1193,153.89,153.81,6.5012]
[1721119350073,23.1193,153.89,153.82,6.501]
[1721119350483,16.6211,153.89,153.83,6.5004]
[1721119350679,16.6211,153.89,153.82,6.5007]
[1721119350864,16.6211,153.89,153.83,45.0]
[1721119351182,16.6211,153.89,153.84,7.79974994]
[1721119351476,16.6211,153.89,153.84,16.2503]
[1721119351790,6.497,153.92,153.85,45.0]
[1721119351988,20.0,153.91,153.85,45.0]
[1721119352353,20.0,153.91,153.85,51.4996]
[1721119352965,6.497,153.92,153.85,51.4996]
[1721119353370,6.497,153.92,153.85,45.0]
[1721119353579,6.4973,153.91,153.85,45.0]
[1721119355079,16.267,153.86,153.74,261.5845]